fUST/lending_fUST_20250911
["ID","MTS","AMOUNT","RATE_DAILY","PERIOD"]
[384807317,1757563848790,-480.0,0.00013918,2]
[384807318,1757563848799,-480.0,0.00013918,2]
[384807319,1757563848809,-480.0,0.00013918,2]
[384807320,1757563848818,-535.59431441,0.00013918,2]
[384807321,1757563848828,-480.0,0.00013918,2]
[384807322,1757563848837,-480.0,0.00013918,2]
[384807323,1757563848847,-480.0,0.00013918,2]
[384807324,1757563848858,-480.0,0.00013918,2]
[384807325,1757563848867,-480.0,0.00013918,2]
[384807326,1757563848876,-480.0,0.00013918,2]
[384807327,1757563848886,-480.0,0.00013918,2]
[384807328,1757563848895,-480.0,0.00013918,2]
[384807329,1757563848904,-500.0,0.00013919,2]
[384807330,1757563848913,-500.0,0.00013919,2]
[384807331,1757563848922,-500.0,0.00013921,2]
[384807332,1757563848931,-500.0,0.00013921,2]
[384807333,1757563848941,-547.03854751,0.00013921,2]
[384807334,1757563848950,-301.94675414,0.00013921,2]
[384807335,1757563848959,-480.0,0.00013922,2]
[384807336,1757563848968,-480.0,0.00013922,2]
[384807337,1757563848978,-480.0,0.00013922,2]
[384807338,1757563848987,-480.89129251,0.00013922,2]
[384807339,1757563848997,-483.22985917,0.00013922,2]
[384807340,1757563849006,-1000.0,0.00013922,2]
[384807341,1757563849015,-480.0,0.00013922,2]
[384807342,1757563849025,-480.0,0.00013922,2]
[384807343,1757563849038,-152.11058956,0.00013922,2]
[384807344,1757563849048,-480.0,0.00013922,2]
[384807345,1757563849057,-286.82436286,0.00013922,2]
[384807346,1757563849067,-482.28132234,0.00013922,2]
[384807347,1757563849078,-480.0,0.00013922,2]
[384807348,1757563849087,-480.0,0.00013922,2]
[384807349,1757563849096,-483.16448451,0.00013922,2]
[384807350,1757563849106,-480.0,0.00013922,2]
[384807351,1757563849115,-486.87359548,0.00013922,2]
[384807352,1757563849126,-485.61593906,0.00013922,2]
[384807353,1757563849135,-508.23,0.00013922,2]
[384807354,1757563849144,-480.0,0.00013922,2]
[384807355,1757563849154,-480.0,0.00013922,2]
[384807356,1757563849163,-481.93573709,0.00013922,2]
[384807357,1757563849172,-392.35218653,0.00013922,2]
[384807358,1757563849195,-89.93691301,0.00013922,2]
[384807359,1757563849205,-480.0,0.00013922,2]
[384807360,1757563849214,-480.0,0.00013922,2]
[384807361,1757563849224,-480.0,0.00013922,2]
[384807362,1757563849233,-480.0,0.00013922,2]
[384807363,1757563849242,-480.0,0.00013922,2]
[384807364,1757563849251,-230.62503495,0.00013922,2]
[384807365,1757563849263,-249.37496505,0.00013922,2]
[384807366,1757563849272,-481.09652051,0.00013922,2]
[384807367,1757563849281,-301.14709116,0.00013922,2]
[384807368,1757563868315,-191.88210211,0.00013912,2]
[384807369,1757563868339,-103.86052353,0.00013912,2]
[384807371,1757563869941,-376.13947647,0.00013912,2]
[384807372,1757563869967,-23.4636727,0.00013912,2]
[384807373,1757563871529,-319.20629834,0.00013912,2]
[384807374,1757563883634,308.71997912,0.00013822,2]
[384807376,1757563994113,168.0,0.00013772,2]
[384807377,1757564090946,376.90625958,0.00013813,2]
[384807378,1757564105914,168.0,0.00013772,2]
[384807379,1757564123206,477.01210144,0.00013772,2]
[384807380,1757564132322,168.0,0.00013772,2]
[384807381,1757564142549,357.44879209,0.00013772,2]
[384807385,1757564151979,636.28,0.00012329,2]
[384807389,1757564161246,168.0,0.00013772,2]
[384807390,1757564172726,530.23,0.00012329,2]
[384807391,1757564178942,300.0,0.00013771,2]
[384807392,1757564187214,300.0,0.00013771,2]
[384807393,1757564196659,300.0,0.00013771,2]
[384807394,1757564213741,441.86,0.00012329,2]
[384807395,1757564216088,300.0,0.00013771,2]
[384807396,1757564224604,368.22,0.00012329,2]
[384807397,1757564235034,306.85,0.00012329,2]
[384807398,1757564235974,300.0,0.00013771,2]
[384807399,1757564244648,672.0,0.00013771,2]
[384807400,1757564271200,336.0,0.00013771,2]
[384807402,1757564288018,198.741498,0.00013699,2]
[384807403,1757564296658,349.60236058,0.00013811,2]
[384807404,1757564307044,1500.0,0.00013771,2]
[384807407,1757564316812,255.71,0.00012329,2]
[384807408,1757564333627,600.0,0.00013771,2]
[384807409,1757564351872,6196.86278116,0.00013812,2]
[384807410,1757564367077,1200.0,0.00013771,2]
[384807411,1757564368241,213.09,0.00012329,2]
[384807412,1757564376771,1200.0,0.00013771,2]
[384807413,1757564393793,1200.0,0.00013771,2]
[384807414,1757564401903,1200.0,0.00013771,2]
[384807415,1757564420961,180.0,0.00013769,2]
[384807416,1757564431223,180.0,0.00013769,2]
[384807417,1757564475300,168.0,0.00013769,2]
[384807418,1757564502566,305.90206556,0.00013811,2]
[384807420,1757564514785,5442.09467005,0.00013812,2]
[384807421,1757564531339,177.57,0.00012329,2]
[384807424,1757564540618,1686.23220681,0.00013769,2]
[384807425,1757564550275,2030.296672,0.00013769,2]
[384807426,1757564552188,887.9,0.00012329,2]
[384807427,1757564552823,2533.3,0.00024,30]
[384807428,1757564574556,2030.296672,0.00013769,2]
[384807429,1757564583630,1209.94597852,0.00013769,2]
[384807430,1757564599991,2030.296672,0.00013769,2]
[384807431,1757564628527,2030.296672,0.00013769,2]
[384807432,1757564653581,2030.296672,0.00013769,2]
[384807433,1757564663762,168.0,0.00013769,2]
[384807434,1757564675329,1338.54813292,0.00013821,2]
[384807436,1757564681144,2030.296672,0.00013769,2]
[384807437,1757564690734,1668.0,0.00013769,2]
[384807438,1757564707148,2030.296672,0.00013769,2]
[384807439,1757564707969,305.6037483,0.00013811,2]
[384807440,1757564716013,355.90013301,0.00013769,2]
[384807442,1757564733205,1130.2574108,0.00013764,2]
[384807446,1757564783426,160.892372,0.00013492,2]
[384807447,1757564783809,423.22003383,0.00013493,2]
[384807448,1757564797579,822.8301603,0.0001291,2]
[384807450,1757564914993,328.10653281,0.00013809,2]
[384807464,1757564970974,158.84,0.00012329,2]
[384807465,1757564976101,666.0,0.0001291,2]
[384807466,1757564977051,10000.0,0.00027397,120]
[384807467,1757564981390,794.24,0.00012329,2]
[384807468,1757564986930,10000.0,0.000201,90]
[384807469,1757564991995,361.02,0.00012329,2]
[384807470,1757564997277,10000.0,0.00027397,120]
[384807471,1757565002399,551.56,0.00012329,2]
[384807472,1757565002664,204.09,0.00027,120]
[384807479,1757565009366,10000.0,0.000201,90]
[384807480,1757565016206,1070.83850632,0.00013821,2]
[384807481,1757565017214,10000.0,0.000201,60]
[384807482,1757565023455,208.92,0.00012329,2]
[384807483,1757565024607,10000.0,0.00024,30]
[384807553,1757565032868,-626.44747456,0.00013902,2]
[384807555,1757565032877,-315.43519277,0.00013903,2]
[384807557,1757565032888,-1714.86147923,0.00013903,2]
[384807559,1757565032897,-2235.13852077,0.00013908,2]
[384807561,1757565032909,-1816.53079738,0.00013908,2]
[384807641,1757565033875,174.1,0.00012329,2]
[384807668,1757565035531,10000.0,0.00027397,120]
[384807673,1757565038617,-831.09228641,0.00013908,2]
[384807674,1757565038628,-7473.42438364,0.00013908,2]
[384807675,1757565038639,-4273.08184796,0.00013908,2]
[384807676,1757565038677,-433.89074549,0.00013908,2]
[384807677,1757565038688,-3576.34701165,0.00013908,2]
[384807678,1757565038699,-4184.43960058,0.00013908,2]
[384807679,1757565038735,-3071.12129889,0.00013908,2]
[384807688,1757565043777,-235.90627491,0.00013908,2]
[384807689,1757565043791,-1200.0,0.00013908,2]
[384807690,1757565043802,-1200.0,0.00013908,2]
[384807691,1757565043812,-300.0,0.00013908,2]
[384807692,1757565043823,-300.0,0.00013908,2]
[384807693,1757565043833,-300.0,0.00013908,2]
[384807694,1757565043842,-289.4042309,0.00013908,2]
[384807695,1757565043859,-10.5957691,0.00013908,2]
[384807696,1757565043868,-421.48877468,0.00013908,2]
[384807698,1757565044360,870.53,0.00012329,2]
[384807699,1757565044587,10000.0,0.000201,90]
[384807703,1757565046495,733.23654948,0.00017,7]
[384807713,1757565046871,-60.94221272,0.00013908,2]
[384807715,1757565046881,-480.0,0.00013908,2]
[384807717,1757565046891,-300.0,0.00013908,2]
[384807719,1757565046900,-480.0,0.00013908,2]
[384807721,1757565046909,-480.0,0.00013908,2]
[384807723,1757565046919,-541.24659191,0.00013908,2]
[384807725,1757565046928,-480.0,0.00013908,2]
[384807727,1757565046937,-417.15472785,0.00013909,2]
[384807729,1757565046948,-530.95967032,0.00013909,2]
[384807731,1757565046957,-217.69300629,0.00013909,2]
[384807733,1757565046966,-480.0,0.00013909,2]
[384807735,1757565046975,-234.8719218,0.00013909,2]
[384807811,1757565063848,5000.0,0.00017,7]
[384807812,1757565074299,184.66432043,0.00017,7]
[384807814,1757565092728,1584.59887364,0.00017,7]
[384807816,1757565110379,287.0932162,0.00013809,2]
[384807817,1757565133884,272.37949959,0.00013768,2]
[384807819,1757565227063,197.188574,0.00013699,2]
[384807820,1757565241551,530.95967032,0.00013768,2]
[384807821,1757565262123,47149.90704732,0.00017,7]
[384807822,1757565293552,9419.3413231,0.00012909,2]
[384807823,1757565300981,251.20656421,0.00013808,2]
[384807824,1757565323377,-249.71649282,0.00013903,2]
[384807825,1757565324623,1100.58758382,0.00013764,2]
[384807826,1757565342974,823.27687916,0.00013764,2]
[384807827,1757565346033,8298.52390221,0.00013821,2]
[384807828,1757565355652,10000.0,0.0002739,120]
[384807829,1757565356579,1437.73674569,0.00013811,2]
[384807831,1757565462856,172.35843111,0.00013803,2]
[384807832,1757565471480,8956.98301699,0.00013809,2]
[384807834,1757565493059,446.23481201,0.00013807,2]
[384807835,1757565536694,56757.59754561,0.00027397,120]
[384807836,1757565555487,173.25523764,0.00013763,2]
[384807838,1757565573598,1252.05798126,0.00013763,2]
[384807841,1757565582798,439.23173388,0.00013763,2]
[384807842,1757565601418,5532.34926814,0.00013811,2]
[384807843,1757565606161,1000.0,0.00012905,2]
[384807846,1757565633971,10000.01,0.00013807,2]
[384807847,1757565633996,10000.01,0.00013807,2]
[384807848,1757565662994,10000.0,0.00012903,2]
[384807849,1757565684430,390.4554605,0.00013805,2]
[384807850,1757565697047,1150.18939656,0.00013808,2]
[384807851,1757565700421,733.23654948,0.00013761,2]
[384807852,1757565726175,556.22444804,0.00013761,2]
[384807854,1757565740112,378.66,0.00012329,2]
[384807855,1757565744327,556.22444804,0.00013761,2]
[384807856,1757565760970,465.29,0.00012329,2]
[384807857,1757565771375,173.93,0.00012329,2]
[384807858,1757565790219,10000.01,0.00013805,2]
[384807859,1757565790242,10000.01,0.00013805,2]
[384807860,1757565790263,10000.01,0.00013805,2]
[384807861,1757565790285,10000.01,0.00013805,2]
[384807862,1757565792002,173.93,0.00012329,2]
[384807863,1757565802881,251.19,0.00012329,2]
[384807875,1757565812629,900.0,0.00013761,2]
[384807876,1757565813327,294.59,0.00012329,2]
[384807877,1757565822337,900.0,0.00013761,2]
[384807878,1757565823724,295.74,0.00012329,2]
[384807879,1757565832921,600.0,0.00013761,2]
[384807880,1757565834224,300.11,0.00012329,2]
[384807883,1757565844815,250.09,0.00012329,2]
[384807884,1757565855266,250.09,0.00012329,2]
[384807885,1757565856655,3688.23284542,0.00013809,2]
[384807886,1757565864342,375.39678123,0.000138,2]
[384807887,1757565865668,509.3,0.00012329,2]
[384807888,1757565866785,1200.0,0.00013761,2]
[384807889,1757565868022,162.79,0.00027397,120]
[384807890,1757565875422,1200.0,0.00013761,2]
[384807891,1757565876525,553.55,0.00012329,2]
[384807892,1757565884050,2030.296672,0.00013761,2]
[384807893,1757565886779,461.29,0.00012329,2]
[384807894,1757565892742,1626.0,0.00013761,2]
[384807895,1757565896960,437.03,0.00012329,2]
[384807896,1757565900592,341.64852792,0.00013803,2]
[384807897,1757565901528,1200.0,0.00013761,2]
[384807898,1757565907611,420.48,0.00012329,2]
[384807899,1757565910966,369.703328,0.00013761,2]
[384807900,1757565918045,350.4,0.00012329,2]
[384807907,1757565928472,382.71,0.00012329,2]
[384807908,1757565930897,10000.01,0.00013805,2]
[384807909,1757565930920,10000.01,0.00013805,2]
[384807910,1757565930943,10000.01,0.00013805,2]
[384807911,1757565930966,6901.44009748,0.00013805,2]
[384807912,1757565937340,747.43394509,0.00013761,2]
[384807913,1757565938881,378.99,0.00012329,2]
[384807914,1757565949533,315.82,0.00012329,2]
[384807915,1757565954358,-747.43394509,0.00013761,2]
[384807916,1757565957958,-157.62398512,0.00013899,2]
[384807917,1757565959968,354.96,0.00012329,2]
[384807918,1757565970599,330.56,0.00012329,2]
[384807919,1757565981015,333.4,0.00012329,2]
[384807920,1757565985117,270.0212575,0.00013484,2]
[384807921,1757565991420,277.83,0.00012329,2]
[384807922,1757566002280,347.4,0.00012329,2]
[384807926,1757566012714,289.5,0.00012329,2]
[384807927,1757566023388,241.25,0.00012329,2]
[384807928,1757566033797,201.04,0.00012329,2]
[384807929,1757566037325,920.15151724,0.00013808,2]
[384807930,1757566044216,167.53,0.00012329,2]
[384807931,1757566054636,837.69,0.00012329,2]
[384807935,1757566093189,10000.01,0.00013805,2]
[384807936,1757566093212,10000.01,0.00013805,2]
[384807937,1757566093234,10000.01,0.00013805,2]
[384807938,1757566093260,10000.01,0.00013805,2]
[384807939,1757566112089,2458.82189694,0.00013808,2]
[384807940,1757566160595,403.36601488,0.0001376,2]
[384807941,1757566177133,403.36601488,0.0001376,2]
[384807942,1757566186400,344.06793021,0.0001376,2]
[384807943,1757566205194,521.08003165,0.0001376,2]
[384807958,1757566231796,177.01210144,0.00013756,2]
[384807967,1757566232058,-2030.296672,0.00013895,2]
[384807968,1757566232069,-103.36601488,0.00013899,2]
[384807969,1757566232078,-300.0,0.00013899,2]
[384807970,1757566232087,-300.0,0.00013899,2]
[384807971,1757566232097,-300.0,0.00013899,2]
[384807972,1757566232106,-1200.0,0.00013899,2]
[384807973,1757566232115,-300.0,0.00013899,2]
[384807974,1757566232125,-1200.0,0.000139,2]
[384807975,1757566232134,-480.0,0.000139,2]
[384807976,1757566232143,-480.0,0.000139,2]
[384807977,1757566232154,-480.0,0.000139,2]
[384807978,1757566232163,-485.37,0.000139,2]
[384807979,1757566232171,-358.85236866,0.000139,2]
[384807980,1757566232181,-480.0,0.000139,2]
[384807981,1757566232190,-480.0,0.000139,2]
[384807982,1757566232200,-42624.110295,0.000139,2]
[384807983,1757566232213,-1304.47065452,0.000139,2]
[384807997,1757566232546,195.294089,0.00013699,2]
[384808105,1757566237934,-500.0,0.00013899,2]
[384808106,1757566237944,-500.0,0.00013899,2]
[384808107,1757566237953,-236.95149689,0.00013899,2]
[384808108,1757566237992,-263.04850311,0.00013899,2]
[384808109,1757566238002,-500.0,0.00013899,2]
[384808110,1757566238011,-500.0,0.00013899,2]
[384808111,1757566238021,-500.0,0.00013899,2]
[384808112,1757566238030,-500.0,0.00013899,2]
[384808113,1757566238039,-500.0,0.00013899,2]
[384808114,1757566238048,-500.0,0.00013899,2]
[384808115,1757566238058,-500.0,0.00013899,2]
[384808116,1757566238070,-500.0,0.00013899,2]
[384808117,1757566238079,-500.0,0.00013899,2]
[384808118,1757566238089,-500.0,0.00013899,2]
[384808119,1757566238097,-500.0,0.00013899,2]
[384808120,1757566238107,-500.0,0.00013899,2]
[384808121,1757566238116,-500.0,0.00013899,2]
[384808122,1757566238125,-500.0,0.00013899,2]
[384808123,1757566238134,-500.0,0.00013899,2]
[384808124,1757566238143,-500.0,0.00013899,2]
[384808125,1757566238153,-500.0,0.00013899,2]
[384808126,1757566238162,-500.0,0.00013899,2]
[384808128,1757566238171,-500.0,0.00013899,2]
[384808129,1757566238180,-500.0,0.00013899,2]
[384808130,1757566238190,-500.0,0.00013899,2]
[384808131,1757566238199,-500.0,0.00013899,2]
[384808132,1757566238209,-500.0,0.00013899,2]
[384808133,1757566238219,-302.20319171,0.00013899,2]
[384808134,1757566238227,-500.0,0.00013899,2]
[384808135,1757566238236,-395.54190687,0.00013899,2]
[384808136,1757566238245,-500.0,0.00013899,2]
[384808137,1757566238254,-500.0,0.00013899,2]
[384808138,1757566238263,-367.26292282,0.00013899,2]
[384808139,1757566238273,-500.0,0.00013899,2]
[384808140,1757566238282,-500.0,0.00013899,2]
[384808141,1757566238291,-500.0,0.00013899,2]
[384808142,1757566238301,-500.0,0.00013899,2]
[384808143,1757566238311,-500.0,0.00013899,2]
[384808144,1757566238320,-500.0,0.00013899,2]
[384808145,1757566238329,-500.0,0.00013899,2]
[384808146,1757566238338,-569.09982986,0.00013899,2]
[384808147,1757566238348,-500.0,0.00013899,2]
[384808148,1757566238357,-425.33734129,0.00013899,2]
[384808149,1757566238366,-500.0,0.00013899,2]
[384808150,1757566238376,-500.0,0.00013899,2]
[384808151,1757566238386,-500.0,0.00013899,2]
[384808152,1757566238396,-500.0,0.00013899,2]
[384808153,1757566238405,-500.0,0.00013899,2]
[384808154,1757566238415,-500.0,0.00013899,2]
[384808155,1757566238424,-500.0,0.00013899,2]
[384808156,1757566238434,-500.0,0.00013899,2]
[384808157,1757566238443,-500.0,0.00013899,2]
[384808158,1757566238452,-181.5116719,0.00013899,2]
[384808159,1757566238462,-500.0,0.00013899,2]
[384808160,1757566238471,-500.0,0.00013899,2]
[384808161,1757566238480,-500.0,0.00013899,2]
[384808162,1757566238489,-500.0,0.00013899,2]
[384808163,1757566238499,-500.0,0.00013899,2]
[384808164,1757566238508,-500.0,0.00013899,2]
[384808165,1757566238517,-500.0,0.00013899,2]
[384808166,1757566238526,-500.0,0.00013899,2]
[384808167,1757566238536,-500.0,0.00013899,2]
[384808168,1757566238546,-500.0,0.00013899,2]
[384808169,1757566238555,-500.0,0.00013899,2]
[384808170,1757566238565,-500.0,0.00013899,2]
[384808171,1757566238575,-500.0,0.00013899,2]
[384808172,1757566238584,-500.0,0.00013899,2]
[384808173,1757566238594,-500.0,0.00013899,2]
[384808174,1757566238603,-500.0,0.00013899,2]
[384808175,1757566238612,-500.0,0.00013899,2]
[384808176,1757566238622,-500.0,0.00013899,2]
[384808177,1757566238631,-500.0,0.00013899,2]
[384808178,1757566238641,-500.0,0.00013899,2]
[384808179,1757566238650,-500.0,0.00013899,2]
[384808180,1757566238660,-500.0,0.00013899,2]
[384808181,1757566238670,-500.0,0.00013899,2]
[384808182,1757566238680,-555.3748935,0.00013899,2]
[384808183,1757566238689,-500.0,0.00013899,2]
[384808184,1757566238698,-500.0,0.00013899,2]
[384808185,1757566238708,-500.0,0.00013899,2]
[384808186,1757566238717,-500.0,0.00013899,2]
[384808187,1757566238727,-500.0,0.00013899,2]
[384808188,1757566238736,-500.0,0.00013899,2]
[384808189,1757566238745,-500.0,0.00013899,2]
[384808190,1757566238754,-500.0,0.00013899,2]
[384808191,1757566238763,-500.0,0.00013899,2]
[384808192,1757566238772,-500.0,0.00013899,2]
[384808193,1757566238782,-500.0,0.00013899,2]
[384808194,1757566238791,-500.0,0.00013899,2]
[384808195,1757566238800,-500.0,0.00013899,2]
[384808196,1757566238810,-465.15133066,0.00013899,2]
[384808197,1757566238819,-500.0,0.00013899,2]
[384808198,1757566238828,-500.0,0.00013899,2]
[384808199,1757566238837,-500.0,0.00013899,2]
[384808200,1757566238847,-500.0,0.00013899,2]
[384808201,1757566238856,-500.0,0.00013899,2]
[384808202,1757566238865,-500.0,0.00013899,2]
[384808203,1757566238875,-500.0,0.00013899,2]
[384808204,1757566238884,-500.0,0.00013899,2]
[384808205,1757566238894,-500.0,0.00013899,2]
[384808206,1757566238903,-500.0,0.00013899,2]
[384808207,1757566238913,-500.0,0.00013899,2]
[384808208,1757566238922,-500.0,0.00013899,2]
[384808209,1757566238931,-500.0,0.00013899,2]
[384808210,1757566238941,-500.0,0.00013899,2]
[384808211,1757566238950,-500.0,0.00013899,2]
[384808212,1757566238959,-500.0,0.00013899,2]
[384808213,1757566238969,-500.0,0.00013899,2]
[384808214,1757566238978,-500.0,0.00013899,2]
[384808215,1757566238988,-500.0,0.00013899,2]
[384808216,1757566238998,-588.74483215,0.00013899,2]
[384808217,1757566239007,-500.0,0.00013899,2]
[384808218,1757566239017,-500.0,0.00013899,2]
[384808219,1757566239026,-500.0,0.00013899,2]
[384808220,1757566239036,-500.0,0.00013899,2]
[384808221,1757566239045,-500.0,0.00013899,2]
[384808222,1757566239055,-500.0,0.00013899,2]
[384808223,1757566239065,-500.0,0.00013899,2]
[384808224,1757566239074,-500.0,0.00013899,2]
[384808225,1757566239084,-500.0,0.00013899,2]
[384808226,1757566239093,-500.0,0.00013899,2]
[384808227,1757566239102,-500.0,0.00013899,2]
[384808228,1757566239111,-500.0,0.00013899,2]
[384808229,1757566239120,-500.0,0.00013899,2]
[384808230,1757566239129,-500.0,0.00013899,2]
[384808231,1757566239139,-500.0,0.00013899,2]
[384808232,1757566239148,-500.0,0.00013899,2]
[384808233,1757566239158,-500.0,0.00013899,2]
[384808234,1757566239168,-500.0,0.00013899,2]
[384808235,1757566239177,-500.0,0.00013899,2]
[384808236,1757566239187,-500.0,0.00013899,2]
[384808237,1757566239196,-500.0,0.00013899,2]
[384808238,1757566239208,-500.0,0.00013899,2]
[384808239,1757566239222,-500.0,0.00013899,2]
[384808240,1757566239232,-500.0,0.00013899,2]
[384808241,1757566239241,-500.0,0.00013899,2]
[384808242,1757566239250,-500.0,0.00013899,2]
[384808243,1757566239259,-5904.05615795,0.000139,2]
[384808244,1757566239273,-167.36289253,0.000139,2]
[384808245,1757566239282,-599.84531099,0.000139,2]
[384808246,1757566239291,-304.81576657,0.000139,2]
[384808247,1757566239303,-683.88842277,0.000139,2]
[384808248,1757566239314,-1058.23592004,0.000139,2]
[384808249,1757566239332,-2293.59989062,0.000139,2]
[384808250,1757566239342,-480.0,0.000139,2]
[384808251,1757566239352,-193.07614328,0.000139,2]
[384808252,1757566239361,-289.60064944,0.000139,2]
[384808253,1757566239370,-160.0,0.00013901,2]
[384808254,1757566239380,-480.0,0.00013901,2]
[384808255,1757566239389,-480.0,0.00013901,2]
[384808256,1757566239398,-480.0,0.00013901,2]
[384808257,1757566239408,-480.68908374,0.00013901,2]
[384808258,1757566239418,-480.0,0.00013901,2]
[384808259,1757566239427,-480.0,0.00013901,2]
[384808260,1757566239436,-480.0,0.00013901,2]
[384808261,1757566239445,-480.0,0.00013901,2]
[384808262,1757566239454,-480.0,0.00013901,2]
[384808263,1757566239463,-480.0,0.00013901,2]
[384808264,1757566239472,-480.0,0.00013901,2]
[384808265,1757566239481,-338.41423132,0.00013901,2]
[384808266,1757566239500,-141.58576868,0.00013901,2]
[384808267,1757566239510,-480.0,0.00013901,2]
[384808268,1757566239519,-257.23275416,0.00013901,2]
[384808269,1757566239528,-486.19027202,0.00013901,2]
[384808270,1757566239537,-480.0,0.00013901,2]
[384808271,1757566239639,-480.0,0.00013901,2]
[384808272,1757566239652,-480.0,0.00013901,2]
[384808273,1757566239662,-480.0,0.00013901,2]
[384808274,1757566239672,-480.0,0.00013901,2]
[384808276,1757566239681,-480.0,0.00013901,2]
[384808277,1757566239691,-481.37446135,0.00013901,2]
[384808278,1757566239700,-480.0,0.00013901,2]
[384808279,1757566239709,-480.0,0.00013901,2]
[384808280,1757566239718,-480.0,0.00013901,2]
[384808281,1757566239727,-480.0,0.00013901,2]
[384808282,1757566239737,-480.0,0.00013901,2]
[384808283,1757566239746,-480.0,0.00013901,2]
[384808284,1757566239755,-480.0,0.00013901,2]
[384808285,1757566239765,-480.0,0.00013901,2]
[384808286,1757566239774,-483.5146039,0.00013901,2]
[384808287,1757566239783,-480.0,0.00013901,2]
[384808288,1757566239793,-480.0,0.00013901,2]
[384808289,1757566239802,-480.0,0.00013901,2]
[384808290,1757566239812,-480.0,0.00013901,2]
[384808291,1757566239821,-480.0,0.00013901,2]
[384808292,1757566239830,-480.0,0.00013901,2]
[384808293,1757566239840,-480.0,0.00013901,2]
[384808294,1757566239849,-480.0,0.00013901,2]
[384808295,1757566239859,-481.00087019,0.00013901,2]
[384808296,1757566239868,-480.0,0.00013901,2]
[384808297,1757566239877,-480.50465226,0.00013901,2]
[384808298,1757566239887,-480.0,0.00013901,2]
[384808299,1757566239897,-480.9855941,0.00013901,2]
[384808300,1757566239906,-601.20454295,0.00013901,2]
[384808301,1757566239916,-588.81644419,0.00013901,2]
[384808302,1757566239926,-480.0,0.00013901,2]
[384808303,1757566239935,-480.0,0.00013901,2]
[384808304,1757566239944,-480.0,0.00013901,2]
[384808305,1757566239954,-480.28481538,0.00013901,2]
[384808306,1757566239963,-480.0,0.00013901,2]
[384808307,1757566239973,-480.95735709,0.00013901,2]
[384808308,1757566239982,-481.22436327,0.00013901,2]
[384808309,1757566239991,-481.51688854,0.00013901,2]
[384808310,1757566240000,-480.0,0.00013901,2]
[384808311,1757566240010,-480.0,0.00013901,2]
[384808312,1757566240019,-480.0,0.00013901,2]
[384808313,1757566240028,-480.0,0.00013901,2]
[384808314,1757566240038,-480.0,0.00013901,2]
[384808315,1757566240048,-480.70719399,0.00013901,2]
[384808316,1757566240058,-480.0,0.00013901,2]
[384808317,1757566240067,-485.56106046,0.00013901,2]
[384808318,1757566240076,-484.75761571,0.00013901,2]
[384808319,1757566240085,-487.01836348,0.00013901,2]
[384808320,1757566240093,-483.10016568,0.00013901,2]
[384808321,1757566240101,-481.97673491,0.00013901,2]
[384808322,1757566240110,-480.31255757,0.00013901,2]
[384808323,1757566240119,-160.0,0.00013901,2]
[384808324,1757566240126,-160.0,0.00013901,2]